fUSD/lending_fUSD_20240613
["ID","MTS","AMOUNT","RATE_DAILY","PERIOD"]
[329387854,1718314247723,-412.03755113,0.000139,2]
[329387855,1718314247734,-1976.86536963,0.000139,2]
[329387857,1718314247745,-2750.11257394,0.000139,2]
[329387859,1718314247759,-201.65732967,0.000139,2]
[329387860,1718314247773,-169.72,0.00013919,2]
[329387862,1718314247789,-152.14,0.0001399,2]
[329387865,1718314247807,-152.14,0.0001399,2]
[329387867,1718314247827,-235.18630162,0.00013998,2]
[329387868,1718314247838,-244610.64032519,0.00014,2]
[329387870,1718314247855,-6242.66587894,0.00014,2]
[329387871,1718314247889,-146500.0,0.00014,2]
[329387873,1718314250973,-4045.83117806,0.00014,2]
[329387874,1718314250992,-700.0,0.00014,2]
[329387875,1718314251005,-6330.0,0.00014,2]
[329387876,1718314251299,-717.88682808,0.00014,2]
[329387877,1718314251635,-702.70595647,0.00014,2]
[329387878,1718314251649,-949.65,0.00014,2]
[329387879,1718314251662,-667.115,0.00014,2]
[329387880,1718314251675,-264.208,0.00014,2]
[329387881,1718314251936,-17304.56,0.00014,2]
[329387882,1718314252009,-0.01200176,0.00014,2]
[329387883,1718314252337,-3272.35512418,0.00014,2]
[329387884,1718314252681,-459.4508895,0.00014,2]
[329388964,1718315232241,-253.75460498,0.00012635,2]
[329388965,1718315232284,-400.32,0.00012636,2]
[329388966,1718315232317,-150.0,0.00013698,2]
[329388967,1718315232356,-11426.7809,0.00013699,2]
[329388968,1718315232398,-267.5303,0.00013699,2]
[329388969,1718315232432,-522.72007997,0.000139,2]
[329388970,1718315232458,-3250.4928,0.000139,2]
[329388971,1718315232524,-170.01669627,0.000139,2]
[329388972,1718315232553,-2500.0,0.000139,2]
[329388973,1718315232580,-3321.55855286,0.000139,2]
[329388990,1718315433816,-407.29881815,0.00013698,2]
[329388991,1718315434904,-291.44373864,0.00013698,2]
[329388992,1718315435202,-18877.00312588,0.00013698,2]
[329388993,1718315435240,-253.75460498,0.00013699,2]
[329388994,1718315435254,-300.0,0.000137,5]
[329388995,1718315435279,-700.0,0.000138,5]
[329388996,1718315435297,-200.0,0.0001383,2]
[329388997,1718315435339,-353712.07679203,0.00013899,2]
[329388998,1718315435360,-1100.0,0.000139,5]
[329388999,1718315435372,-7500.0,0.000139,2]
[329389000,1718315435394,-24666.92887897,0.000139,2]
[329389001,1718315435432,-135080.08398175,0.000139,2]
[329389002,1718315435448,-1317.91024642,0.000139,2]
[329389003,1718315435474,-250.0,0.00013942,2]
[329389004,1718315435485,-152.18,0.0001399,2]
[329389005,1718315435496,-152.18,0.0001399,2]
[329389006,1718315435513,-216.18844803,0.0001399,2]
[329389007,1718315435526,-393.26957857,0.00013998,2]
[329389008,1718315435543,-193.26247617,0.00013998,2]
[329389010,1718315435572,-1110.38407718,0.00013999,2]
[329389011,1718315435595,-37651.70369302,0.00014,2]
[329389012,1718315435616,-1233.01356435,0.00014,2]
[329389024,1718315439608,-6044.38402084,0.00014,2]
[329389025,1718315439907,-10086.79046966,0.00014,2]
[329389028,1718315444252,-5879.22796888,0.00014,2]
[329389029,1718315444266,-10028.8574235,0.00014,2]
[329389031,1718315444850,-403.47012699,0.00014,2]
[329389032,1718315444864,-265.1286,0.00014,2]
[329389033,1718315444880,-125553.77591031,0.00014,2]
[329389034,1718315445004,-595.48486203,0.00014,2]
[329389035,1718315445017,-7663.63153196,0.00014,2]
[329389036,1718315445216,-19448.15347899,0.00014,2]
[329389037,1718315445430,-16258.44546349,0.00014,2]
[329389038,1718315445444,-445.73757468,0.00014,2]
[329389039,1718315445458,-1670.35827382,0.00014,2]
[329389040,1718315445473,-4716.73057166,0.00014,2]
[329389041,1718315445487,-65992.06221231,0.00014,2]
[329389042,1718315445504,-2943.03595209,0.00014,2]
[329389043,1718315445519,-454780.57931974,0.00014,2]
[329389044,1718315445538,-383075.55367386,0.00014,2]
[329389045,1718315445771,-17321.24999998,0.00014,2]
[329389046,1718315445801,-595.3338411,0.00014,2]
[329389047,1718315445819,-1502.25651494,0.00014,2]
[329389048,1718315445842,-413.7332465,0.00014,2]
[329389049,1718315445856,-1058.18044309,0.00014,2]
[329389052,1718315446165,-349022.10474991,0.00014,2]
[329389054,1718315446182,-11156.15067675,0.00014,2]
[329389099,1718315446923,-14784.56265068,0.00014,2]
[329389102,1718315446940,-15773.87818275,0.00014,2]
[329389185,1718315448690,-27556.35509538,0.00014,2]
[329389186,1718315448712,-154471.24991815,0.00014,2]
[329389187,1718315448744,-10432.10835453,0.00014,2]
[329389188,1718315448777,-823.81812092,0.00014,2]
[329389189,1718315448824,-3678.1868,0.00014,2]
[329389190,1718315448853,-3125.185,0.00014,2]
[329389193,1718315448936,-6015.78,0.00014,2]
[329389196,1718315448976,-12343.23937339,0.00014,2]
[329389199,1718315448992,-2066.50353201,0.00014,2]
[329389207,1718315449165,-45205.67028131,0.00014,2]
[329389217,1718315449744,-1125.33935423,0.00014,2]
[329389223,1718315449895,-860.27720714,0.00014,2]
[329389245,1718315469773,170.44610415,0.00010499,2]
[329389247,1718316553229,-155.0,0.00011252,2]
[329389248,1718316553270,-95.0,0.00011253,2]
[329389249,1718316554264,-591.23174591,0.00011253,2]
[329389250,1718316563227,-429.97845481,0.00011251,2]
[329389251,1718316563375,-570.02154519,0.00011253,2]
[329389252,1718316563439,-744.5984477,0.00011253,2]
[329389253,1718316563491,-415.39,0.00011259,2]
[329389254,1718316563537,-155.69003604,0.00012598,2]
[329389255,1718316563577,-504.598469,0.00013215,2]
[329389256,1718316563632,-167.5,0.00013349,2]
[329389257,1718316563661,-144.70304726,0.00013366,2]
[329389264,1718316634276,-5.29695274,0.00013366,2]
[329389265,1718316634288,-7044.85,0.00013367,2]
[329389266,1718316634299,-1073.29,0.00013447,2]
[329389267,1718316634317,-155.18,0.00013454,2]
[329389268,1718316634338,-250.0,0.0001352,2]
[329389269,1718316634352,-415.39,0.00013523,2]
[329389270,1718316634369,-1000.0,0.00013669,2]
[329389271,1718316634397,-242.98,0.00013699,2]
[329389272,1718316634416,-2751.0,0.00013699,2]
[329389273,1718316634429,-222.93898112,0.000139,2]
[329389274,1718316634440,-3124.37240791,0.000139,2]
[329389275,1718316634456,-167.32,0.00013921,2]
[329389276,1718316634469,-4616.24077475,0.00013985,2]
[329389277,1718316634497,-11691.42290878,0.0001399,2]
[329389278,1718316634516,-7652.43992507,0.00013998,2]
[329389279,1718316634564,-155.0,0.00013998,2]
[329389280,1718316634585,-342.12611503,0.00013998,2]
[329389281,1718316634596,-234.08195287,0.00013998,2]
[329389282,1718316634620,-263.89187326,0.00013998,2]
[329389283,1718316634644,-267.18972619,0.00013998,2]
[329389284,1718316634656,-235.18630162,0.00013998,2]
[329389285,1718316634671,-871.34871393,0.00013998,2]
[329389286,1718316634683,-404.57077473,0.00013998,2]
[329389287,1718316634700,-431.72811163,0.00013998,2]
[329389288,1718316634713,-400.0,0.00013998,2]
[329389289,1718316634725,-155.0,0.00013998,2]
[329389290,1718316634736,-289.20595893,0.00013998,2]
[329389291,1718316634748,-1215.11097114,0.00013998,2]
[329389292,1718316634767,-791.5831627,0.00013999,2]
[329389293,1718316634781,-66745.99607609,0.00014,2]
[329389294,1718316634986,-685.15,0.00014,2]
[329389295,1718316635169,-48752.23920531,0.00014,2]
[329389296,1718316635183,-325.40703263,0.00014,2]
[329389297,1718316635197,-791.24822385,0.00014,2]
[329389298,1718316635331,-450.0,0.00014,2]
[329389299,1718316635356,-422.57359696,0.00014,2]
[329389305,1718316640609,-24675.95405399,0.00014,2]
[329389306,1718316641206,-404.68435527,0.00014,2]
[329389307,1718316641699,-13806.94616273,0.00014,2]
[329389308,1718316641737,-1042.87918512,0.00014,2]
[329389309,1718316641767,-525.91495481,0.00014,2]
[329389310,1718316641946,-139543.61117449,0.00014,2]
[329389347,1718316646026,-518.04270749,0.00013999,2]
[329389348,1718316646052,-4.59229251,0.00014,2]
[329389349,1718316646065,-1800.305,0.00014,2]
[329389350,1718316646090,-739.67676132,0.00014,2]
[329389351,1718316646109,-458.87624204,0.00014,2]
[329389352,1718316646297,-481.5660385,0.00014,2]
[329389383,1718316649430,-1316.09,0.00014,2]
[329389384,1718316649447,-735.73500075,0.00014,2]
[329389385,1718316649476,-316.01403212,0.00014,2]
[329389386,1718316649508,-400.80137657,0.00014,2]
[329389387,1718316649532,-500.0008285,0.00014,2]
[329389388,1718316650041,-13281.40867131,0.00014,2]
[329389389,1718316650054,-349.999995,0.00014,2]
[329389390,1718316650256,-962.65997474,0.00014,2]
[329389391,1718316650292,-2176.89212476,0.00014,2]
[329389393,1718316650693,-542.9070487,0.00014,2]
[329389396,1718316651641,-33479.48093621,0.00014,2]
[329389397,1718316651665,-36961.955515,0.00014,2]
[329389398,1718317773185,-436.84108596,0.00011421,2]
[329389399,1718317773221,-155.0,0.00011422,2]
[329389400,1718317773272,-163.85,0.00011426,2]
[329389401,1718317773311,-239.45566401,0.00012326,2]
[329389420,1718317833897,-307.61646073,0.0001142,2]
[329389421,1718317833910,-626.38130133,0.00012326,2]
[329389422,1718317833924,-214.99923857,0.00012326,2]
[329389423,1718317833936,-107.07511177,0.00012326,2]
[329389424,1718317834407,-1256.57247146,0.00012326,2]
[329389425,1718317834418,-4544.89116797,0.00012326,2]
[329389426,1718317834437,-3092.91978557,0.00012326,2]
[329389427,1718317834456,-479.84771151,0.00012326,2]
[329389428,1718317834469,-4243.84407077,0.00012326,2]
[329389429,1718317834530,-21.27859763,0.00012326,2]
[329389430,1718317834540,-134.39433599,0.00012326,2]
[329389431,1718317834553,-250.0,0.00013031,2]
[329389432,1718317834572,-2192.76,0.00013089,2]
[329389433,1718317834582,-167.42,0.00013197,2]
[329389434,1718317834596,-2364.6013933,0.0001323,2]
[329389435,1718317834609,-168.30454951,0.0001323,2]
[329389436,1718317834619,-357.01457659,0.0001323,2]
[329389437,1718317834634,-1219.0116262,0.0001323,2]
[329389438,1718317834647,-85.83971225,0.0001323,2]
[329389439,1718317834665,-74.50073382,0.0001323,2]
[329389440,1718317834695,-225.48926618,0.00013231,2]
[329389441,1718317834713,-74.51073382,0.00013231,2]
[329389442,1718317834724,-150.0,0.00013231,2]
[329389443,1718317834749,-150.0,0.00013231,2]
[329389444,1718317834762,-372.05091395,0.00013231,2]
[329389445,1718317834775,-151.55350625,0.00013231,2]
[329389446,1718317834800,-678.53338473,0.00013232,2]
[329389447,1718317835060,-1514.79151375,0.00013232,2]
[329389448,1718317835075,-1518.30485013,0.00013232,2]
[329389449,1718317835095,-500.0,0.00013232,2]
[329389450,1718317835127,-2144.45724868,0.00013232,2]
[329389451,1718317835141,-1051.07990242,0.00013232,2]
[329389452,1718317835170,-8298.41396264,0.00013232,2]
[329389453,1718317835601,-3870.16482032,0.00013232,2]
[329389454,1718317835614,-999.70724,0.00013232,2]
[329389455,1718317835632,-535.511,0.00013232,2]
[329389456,1718317835650,-280.83854349,0.00013232,2]
[329389457,1718317835671,-8047.54421753,0.00013232,2]
[329389463,1718317845011,-617.54134557,0.00013232,2]
[329389464,1718317845312,-1423.26126885,0.00013232,2]
[329389465,1718317845327,-1839.93992941,0.00013232,2]
[329389466,1718317845342,-302.85004585,0.00013232,2]
[329389467,1718317845816,-2630.71397016,0.00013232,2]
[329389468,1718317845836,-2897.83812181,0.00013232,2]
[329389469,1718317845848,-17245.95033819,0.00013232,2]
[329389470,1718317845866,-2329.79534448,0.00013232,2]
[329389471,1718317845877,-533.58113906,0.000133,2]
[329389472,1718317845888,-1136.96778088,0.00013441,2]
[329389473,1718317845912,-191.82046631,0.00013441,2]
[329389474,1718317845923,-1337.56,0.00013441,2]
[329389475,1718317845933,-664.071262,0.00013442,2]
[329389476,1718317845945,-313.46115937,0.00013444,2]
[329389477,1718317845956,-159.18,0.00013699,2]
[329389478,1718317845971,-200.0,0.00013887,2]
[329389479,1718317845983,-200.0,0.00013887,2]
[329389480,1718317845997,-500.0,0.00013887,2]
[329389481,1718317846008,-200.0,0.00013887,2]
[329389482,1718317846019,-200.0,0.00013888,2]
[329389483,1718317846030,-200.0,0.00013888,2]
[329389484,1718317846044,-500.0,0.00013888,2]
[329389485,1718317846056,-500.0,0.00013888,2]
[329389486,1718317846071,-200.0,0.00013888,2]
[329389487,1718317846090,-499.99,0.00013888,2]
[329389488,1718317846102,-156.39415285,0.00013898,2]
[329389489,1718317846118,-196.84671782,0.00013898,2]
[329389490,1718317846128,-427.49328178,0.00013898,2]
[329389491,1718317846140,-211.53018415,0.00013898,2]
[329389492,1718317846158,-281.61774208,0.00013898,2]
[329389493,1718317846169,-168.27930932,0.00013898,2]
[329389494,1718317846212,-155.50075149,0.00013898,2]
[329389495,1718317846256,-162.88953643,0.00013898,2]
[329389497,1718317846282,-240.89824305,0.00013898,2]
[329389498,1718317846316,-436.37921393,0.00013899,2]
[329389499,1718317846331,-6619.7509,0.000139,2]
[329389500,1718317846348,-287.11,0.0001391,2]
[329389501,1718317846359,-430.4114,0.0001393,2]
[329389502,1718317846376,-10916.70450301,0.00014,2]
[329389503,1718317846387,-2000.0,0.00014,2]
[329389504,1718317846398,-200.0,0.00014,2]
[329389505,1718317846427,-447.56694199,0.00014,2]
[329389506,1718317846698,-0.00361282,0.00014,2]
[329389507,1718317846732,-741.079999,0.00014,2]
[329389508,1718317846753,-811.34944619,0.00014,2]
[329389509,1718317846783,-200.0,0.00014,2]
[329389510,1718317846814,-631.55005381,0.00014,2]
[329389511,1718317846846,-1368.44994619,0.00014,2]
[329389512,1718317846879,-200.0,0.00014,2]
[329389513,1718317846891,-1906.42083,0.00014,2]
[329389514,1718317846912,-1042.33917751,0.00014,2]
[329389515,1718317846932,-262.96555812,0.00014,2]
[329389516,1718317846964,-4403.6310207,0.00014,2]
[329389517,1718317846996,-2000.0,0.00014,2]
[329389518,1718317847017,-1809.7978393,0.00014,2]
[329389519,1718317847029,-500.0,0.00014,2]
[329389520,1718317847042,-500.0,0.00014,2]
[329389521,1718317847054,-500.0,0.00014,2]
[329389522,1718317847083,-500.0,0.00014,2]
[329389523,1718317847095,-500.0,0.00014,2]
[329389524,1718317847141,-500.0,0.00014,2]
[329389525,1718317847167,-500.0,0.00014,2]
[329389526,1718317847230,-792.0,0.00014,2]
[329389528,1718317847281,-1000.0,0.0001401,2]
[329389530,1718317847300,-3695.4025077,0.00014011,2]
[329389532,1718317847312,-2821.182146,0.00014021,2]
[329389534,1718317847326,-1010.84,0.0001404,2]
[329389535,1718317847344,-250.0,0.00014064,2]
[329389538,1718317847377,-2000.0,0.0001414,2]
[329389540,1718317847396,-200.0,0.0001414,2]
[329389542,1718317847407,-2000.0,0.0001414,2]
[329389543,1718317847440,-200.0,0.0001414,2]
[329389544,1718317847462,-2000.0,0.0001414,2]
[329389545,1718317847526,-1000.0,0.00014193,2]
[329389546,1718317847548,-200.0,0.00014281,2]
[329389547,1718317847567,-2000.0,0.00014281,2]
[329389548,1718317847588,-200.0,0.00014281,2]
[329389549,1718317847629,-316.56325385,0.00014288,2]
[329389550,1718317847643,-200.0,0.00014424,2]
[329389551,1718317847657,-2000.0,0.00014424,2]
[329389552,1718317847676,-200.0,0.00014424,2]
[329389553,1718317847692,-200.0,0.00014568,2]
[329389554,1718317847706,-2000.0,0.00014568,2]
[329389556,1718317847730,-373.85,0.0001459,2]
[329389557,1718317847743,-561.65317785,0.00014699,2]
[329389558,1718317847767,-155.58255438,0.00014898,2]
[329389560,1718317847780,-714.42294027,0.00014898,2]
[329389562,1718317847797,-35482.43622612,0.00014898,2]
[329389563,1718317847809,-727.60709199,0.00014898,2]
[329389566,1718317847837,-253.97933181,0.00014898,2]
[329389567,1718317847848,-176.74369441,0.00014898,2]
[329389569,1718317847860,-205.63487324,0.00014898,2]
[329389571,1718317847874,-155.90896839,0.00014898,2]
[329389573,1718317847885,-625.74636743,0.00014898,2]
[329389575,1718317847904,-101587.51632535,0.00014898,2]
[329389577,1718317847933,-158.29323863,0.00014898,2]
[329389578,1718317847947,-1396.85466757,0.00014899,2]
[329389579,1718317847979,-155.43348273,0.00014899,2]
[329389580,1718317848000,-537.28157027,0.000149,2]
[329389581,1718317848020,-479.16007337,0.000149,2]
[329389582,1718317848031,-178.35118492,0.000149,2]
[329389583,1718317848042,-26825.2815,0.000149,2]
[329389584,1718317848060,-316.83251496,0.000149,2]
[329389585,1718317848072,-1142.27562578,0.000149,2]
[329389586,1718317848093,-292.72818215,0.00014999,2]
[329389587,1718317848116,-2500.0,0.00014999,2]
[329389588,1718317848128,-3959.95580288,0.00015,2]
[329389589,1718317848140,-188868.13989311,0.00015,2]
[329389590,1718317848150,-1047.27117705,0.00015,2]
[329389591,1718317848160,-324753.85036566,0.00015,2]
[329389592,1718317848180,-450.0,0.00015,2]
[329389593,1718317848199,-200.0,0.00015,2]
[329389594,1718317848211,-155.54656387,0.00015,2]
[329389595,1718317848224,-156.73857483,0.00015,2]
[329389596,1718317848252,-358.0,0.00015078,2]
[329389597,1718317848263,-1830.0,0.00015078,2]
[329389598,1718317848275,-383.546,0.00015078,2]
[329389599,1718317848300,-1269.0,0.00015078,2]
[329389600,1718317848313,-3.37938595,0.00015078,2]
[329389601,1718317848463,-670.86089471,0.00013232,2]
[329389602,1718317848499,-13996.74050266,0.00013232,2]
[329389603,1718317850149,-128488.2668404,0.00012326,2]
[329389604,1718317850162,-237.296777,0.00013165,2]
[329389605,1718317850175,-4908.1442853,0.00013232,2]
[329389606,1718317850199,-5784.62061405,0.00015078,2]
[329389607,1718317850247,-441.0,0.00015078,2]
[329389608,1718317850259,-654.386,0.00015078,2]
[329389609,1718317850274,-1651.0,0.00015078,2]
[329389610,1718317850305,-5158.0,0.00015078,2]
[329389611,1718317850355,-38088.0,0.00015078,2]
[329389612,1718317850374,-1658.0,0.00015078,2]
[329389613,1718317850385,-1195.0,0.00015078,2]
[329389614,1718317850396,-2407.0,0.00015078,2]
[329389615,1718317850408,-1318.839,0.00015078,2]
[329389616,1718317850420,-454.855,0.00015078,2]
[329389617,1718317850449,-159.388,0.00015078,2]
[329389618,1718317850484,-224.0,0.000153,2]
[329389619,1718317850522,-8084.0,0.00015325,2]
[329389620,1718317850549,-167.0,0.00015831,2]
[329389621,1718317850562,-1000.0,0.00015967,2]
[329389622,1718317850577,-152.22,0.00016106,2]
[329389623,1718317850606,-8663.22,0.00016116,2]
[329389624,1718317850624,-19970.24,0.00016116,2]
[329389625,1718317850638,-3365.92,0.00016116,2]
[329389626,1718317850657,-4212.07791507,0.0001621,2]
[329389627,1718317850674,-479.16007328,0.00016264,2]
[329389628,1718317850687,-167.0,0.00016354,2]
[329389629,1718317850705,-159.18,0.00016438,2]
[329389630,1718317850721,-1840.49385261,0.000165,2]
[329389631,1718317850737,-316.83251495,0.00016775,2]
[329389632,1718317850749,-1010.84,0.00016779,2]
[329389633,1718317850765,-373.85,0.00016854,2]
[329389634,1718317850776,-167.0,0.00016876,2]
[329389635,1718317850789,-178.35118489,0.00017177,2]
[329389636,1718317850808,-167.0,0.00017399,2]
[329389637,1718317850821,-3428.0,0.000174,2]
[329389638,1718317850837,-479.16007328,0.00017627,2]
[329389639,1718317850876,-1000.0,0.00017741,2]
[329389640,1718317850889,-500.0,0.000179,2]
[329389641,1718317850915,-500.0,0.000179,2]
[329389642,1718317850929,-500.0,0.000179,2]
[329389643,1718317850941,-500.0,0.000179,2]
[329389644,1718317850953,-500.0,0.000179,2]
[329389645,1718317850965,-500.0,0.000179,2]
[329389646,1718317850976,-500.0,0.000179,2]
[329389647,1718317850988,-500.0,0.000179,2]
[329389648,1718317850999,-500.0,0.000179,2]
[329389649,1718317851012,-500.0,0.000179,2]
[329389650,1718317851032,-500.0,0.000179,2]
[329389651,1718317851045,-500.0,0.000179,2]
[329389652,1718317851060,-500.0,0.000179,2]
[329389653,1718317851073,-500.0,0.000179,2]
[329389654,1718317851091,-500.0,0.000179,2]
[329389655,1718317851108,-500.0,0.000179,2]
[329389656,1718317851119,-500.0,0.000179,2]
[329389657,1718317851181,-500.0,0.000179,2]
[329389658,1718317851197,-500.0,0.000179,2]
[329389659,1718317851216,-500.0,0.000179,2]
[329389660,1718317851287,-500.0,0.000179,2]
[329389661,1718317851301,-500.0,0.000179,2]
[329389662,1718317851332,-500.0,0.000179,2]
[329389663,1718317851357,-500.0,0.000179,2]
[329389664,1718317851390,-500.0,0.000179,2]
[329389665,1718317851407,-500.0,0.000179,2]
[329389666,1718317851418,-500.0,0.000179,2]
[329389667,1718317851452,-500.0,0.000179,2]
[329389668,1718317851469,-500.0,0.000179,2]
[329389669,1718317851491,-500.0,0.000179,2]
[329389670,1718317851503,-500.0,0.000179,2]
[329389671,1718317851526,-500.0,0.000179,2]
[329389672,1718317851557,-500.0,0.000179,2]
[329389673,1718317851568,-500.0,0.000179,2]
[329389674,1718317851584,-500.0,0.000179,2]
[329389675,1718317851625,-500.0,0.000179,2]
[329389676,1718317851639,-500.0,0.000179,2]
[329389677,1718317851656,-500.0,0.000179,2]
[329389678,1718317851684,-500.0,0.000179,2]
[329389679,1718317851710,-500.0,0.000179,2]
[329389680,1718317851725,-500.0,0.000179,2]
[329389681,1718317851748,-500.0,0.000179,2]
[329389682,1718317851770,-500.0,0.000179,2]
[329389683,1718317851811,-500.0,0.000179,2]
[329389684,1718317851855,-500.0,0.000179,2]
[329389685,1718317851881,-500.0,0.000179,2]
[329389686,1718317851907,-500.0,0.000179,2]
[329389687,1718317851925,-500.0,0.000179,2]
[329389688,1718317851943,-500.0,0.000179,2]
[329389689,1718317851956,-500.0,0.000179,2]
[329389690,1718317851970,-500.0,0.000179,2]
[329389691,1718317851988,-500.0,0.000179,2]
[329389692,1718317852005,-500.0,0.000179,2]
[329389693,1718317852041,-500.0,0.000179,2]
[329389694,1718317852055,-500.0,0.000179,2]
[329389695,1718317852070,-500.0,0.000179,2]
[329389696,1718317852083,-500.0,0.000179,2]
[329389697,1718317852106,-500.0,0.000179,2]
[329389698,1718317852117,-500.0,0.000179,2]
[329389699,1718317852130,-500.0,0.000179,2]
[329389700,1718317852141,-500.0,0.000179,2]
[329389701,1718317852152,-500.0,0.000179,2]
[329389702,1718317852164,-500.0,0.000179,2]
[329389703,1718317852184,-500.0,0.000179,2]
[329389704,1718317852207,-500.0,0.000179,2]
[329389705,1718317852231,-500.0,0.000179,2]
[329389706,1718317852250,-500.0,0.000179,2]
[329389707,1718317852271,-500.0,0.000179,2]
[329389708,1718317852292,-500.0,0.000179,2]
[329389709,1718317852312,-500.0,0.000179,2]
[329389710,1718317852324,-500.0,0.000179,2]
[329389711,1718317852337,-500.0,0.000179,2]
[329389712,1718317852363,-500.0,0.000179,2]
[329389713,1718317852388,-500.0,0.000179,2]
[329389714,1718317852442,-500.0,0.000179,2]
[329389715,1718317852456,-500.0,0.000179,2]
[329389716,1718317852470,-500.0,0.000179,2]
[329389717,1718317852500,-500.0,0.000179,2]
[329389718,1718317852513,-500.0,0.000179,2]
[329389719,1718317852542,-500.0,0.000179,2]
[329389720,1718317852557,-500.0,0.000179,2]
[329389721,1718317852584,-500.0,0.000179,2]
[329389722,1718317852596,-500.0,0.000179,2]
[329389723,1718317852607,-500.0,0.000179,2]
[329389724,1718317852632,-500.0,0.000179,2]
[329389725,1718317852645,-500.0,0.000179,2]
[329389726,1718317852657,-500.0,0.000179,2]
[329389727,1718317852685,-500.0,0.000179,2]
[329389728,1718317852698,-500.0,0.000179,2]
[329389729,1718317852736,-500.0,0.000179,2]
[329389730,1718317852750,-500.0,0.000179,2]
[329389731,1718317852776,-500.0,0.000179,2]
[329389732,1718317852787,-400.0,0.000179,6]
[329389733,1718317852808,-500.0,0.000179,2]
[329389734,1718317852852,-500.0,0.000179,2]
[329389735,1718317852876,-500.0,0.000179,2]
[329389736,1718317852889,-500.0,0.000179,2]
[329389737,1718317852915,-500.0,0.000179,2]
[329389738,1718317852926,-500.0,0.000179,2]
[329389739,1718317852937,-500.0,0.000179,2]
[329389740,1718317852949,-500.0,0.000179,2]
[329389741,1718317852959,-500.0,0.000179,2]
[329389742,1718317852980,-500.0,0.000179,2]
[329389743,1718317853014,-500.0,0.000179,2]
[329389744,1718317853030,-500.0,0.000179,2]
[329389745,1718317853046,-500.0,0.000179,2]
[329389746,1718317853080,-500.0,0.000179,2]
[329389747,1718317853100,-500.0,0.000179,2]
[329389748,1718317853112,-500.0,0.000179,2]
[329389749,1718317853122,-500.0,0.000179,2]
[329389750,1718317853141,-500.0,0.000179,2]
[329389751,1718317853167,-500.0,0.000179,2]
[329389752,1718317853184,-500.0,0.000179,2]
[329389753,1718317853206,-167.0,0.00017921,2]
[329389754,1718317853223,-268.28479221,0.00018,2]
[329389755,1718317853236,-1159.26048645,0.00018,2]
[329389756,1718317853259,-290.0,0.00018078,2]
[329389757,1718317853274,-1269.0,0.00018078,2]
[329389758,1718317853287,-5782.0,0.00018078,2]
[329389759,1718317853307,-5152.0,0.00018078,2]
[329389760,1718317853318,-37316.456,0.00018078,2]
[329389761,1718317853333,-1488.0,0.00018078,2]
[329389762,1718317853357,-1195.0,0.00018078,2]
[329389763,1718317853387,-1506.3,0.00018078,2]
[329389764,1718317853405,-1304.0,0.00018078,2]
[329389765,1718317853429,-447.0,0.00018078,2]
[329389766,1718317853440,-167.0,0.00018444,2]
[329389767,1718317853457,-316.83251495,0.0001865,2]
[329389768,1718317853473,-1000.0,0.000189,2]
[329389769,1718317853489,-479.16007328,0.00018991,2]
[329389770,1718317853501,-1906.42083,0.00019,2]
[329389771,1718317853694,-411.63245029,0.00019,2]
[329389772,1718317853714,-373.85,0.00019118,2]
[329389773,1718317853725,-500.0,0.00019178,2]